[Event "7. Arber-Senioren-Cup 2019"]
[Site "Bodenmais"]
[Date "2019.08.01"]
[Round "6.11"]
[White "Latzel, Wolfgang"]
[Black "Glaessl, Matthias"]
[Result "1/2-1/2"]
[ECO "B39"]
[WhiteElo "1881"]
[BlackElo "2148"]
[Annotator "NA"]
[PlyCount "73"]
[EventDate "2019.07.27"]
[EventType "swiss"]
[EventCountry "GER"]
[SourceTitle "playchess.com"]
[Source "ChessBase"]
[SourceQuality "1"]
[TimeControl "60/7800+30:0"]

1. e4 {[%emt 0:00:00]} c5 {[%emt 0:00:00]} 2. Nf3 {[%emt 0:00:00]} Nc6 {[%emt 0:00:00]} 3. d4 {[%emt 0:00:00]} cxd4 {[%emt 0:00:00]} 4. Nxd4 {[%emt 0:00:05]} g6 {[%emt 0:00:00]} 5. c4 {[%emt 0:00:14]} Bg7 {[%emt 0:00:00]} 6. Be3 {[%emt 0:00:07]} Nf6 {[%emt 0:00:01]} 7. Nc3 {[%emt 0:00:41]} Ng4 {[%emt 0:00:58]} 8. Qxg4 {[%emt 0:00:12]} Nxd4 {[%emt 0:00:06]} 9. Qd1 {[%emt 0:00:09]} Ne6 {[%emt 0:00:32]} 10. Rc1 {[%emt 0:00:31]} Qa5 {[%emt 0:02:55]} 11. Bd3 {[%emt 0:11:31]} b6 {[%emt 0:15:21]} 12. O-O {[%emt 0:01:02]} g5 {[%emt 0:02:21]} 13. Qd2 {[%emt 0:01:26]} Qe5 {[%emt 0:00:52]} 14. b3 {[%emt 0:05:44]} Rg8 {[%emt 0:07:19]} 15. Nd5 {[%emt 0:02:02]} Bb7 {[%emt 0:04:38]} 16. Rce1 {[%emt 0:09:46]} Rc8 {[%emt 0:05:38]} 17. f4 {[%emt 0:02:51]} gxf4 {[%emt 0:00:10]} 18. Nxf4 {[%emt 0:00:15]} Nc5 {[%emt 0:05:19]} 19. Nd5 {[%emt 0:05:08]} Nxd3 {[%emt 0:00:56]} 20. Qxd3 {[%emt 0:00:10]} e6 {[%emt 0:00:25]} 21. Bf2 {[%emt 0:07:05]} Qg5 {[%emt 0:11:02]} 22. Bg3 {[%emt 0:11:36]} Bxd5 {[%emt 0:03:34]} 23. exd5 {[%emt 0:00:27]} Qg6 {[%emt 0:00:06]} 24. Qf3 {[%emt 0:02:25]} Bd4+ {[%emt 0:03:14]} 25. Kh1 {[%emt 0:00:31]} Kf8 {[%emt 0:03:29]} 26. Re4 {[%emt 0:03:32]} Bc5 {[%emt 0:05:15]} 27. Rg4 {[%emt 0:00:34]} Qf5 {[%emt 0:00:32]} 28. Qxf5 {[%emt 0:02:08]} exf5 {[%emt 0:00:13]} 29. Rxg8+ {[%emt 0:00:05]} Kxg8 {[%emt 0:00:08]} 30. Rxf5 {[%emt 0:00:10]} Kg7 {[%emt 0:00:57]} 31. h3 {[%emt 0:01:42]} f6 {[%emt 0:00:11]} 32. Rf1 {[%emt 0:00:37]} a5 {[%emt 0:00:30]} 33. Re1 {[%emt 0:00:35]} Kf7 {[%emt 0:00:06]} 34. a4 {[%emt 0:02:54]} Kg6 {[%emt 0:02:01]} 35. Bf4 {[%emt 0:01:52]} f5 {[%emt 0:00:51]} 36. g3 {[%emt 0:00:28]} Kf6 {[%emt 0:02:24]} 37. Kg2 {[%emt 0:00:11] Ke5} 1/2-1/2

[Event "7. Arber-Senioren-Cup 2019"]
[Site "Bodenmais"]
[Date "2019.08.01"]
[Round "6.13"]
[White "Busch, Joerg"]
[Black "Limberg, Siegfried"]
[Result "1-0"]
[ECO "A45"]
[WhiteElo "1851"]
[BlackElo "1983"]
[Annotator "NA"]
[PlyCount "105"]
[EventDate "2019.07.27"]
[EventType "swiss"]
[EventCountry "GER"]
[SourceTitle "playchess.com"]
[Source "ChessBase"]
[SourceQuality "1"]
[TimeControl "60/7800+30:0"]

1. d4 {[%emt 0:00:00]} Nf6 {[%emt 0:00:00]} 2. Bf4 {[%emt 0:00:00]} d6 {[%emt 0:00:29]} 3. e3 {[%emt 0:00:00]} g6 {[%emt 0:00:58]} 4. Be2 {[%emt 0:00:51]} Bg7 {[%emt 0:00:22]} 5. Nd2 {[%emt 0:01:47]} Nbd7 {[%emt 0:00:57]} 6. h3 {[%emt 0:03:46]} e5 {[%emt 0:02:12]} 7. Bg5 {[%emt 0:02:21]} h6 {[%emt 0:03:19]} 8. Bxf6 {[%emt 0:10:25]} Nxf6 {[%emt 0:02:42]} 9. dxe5 {[%emt 0:02:12]} dxe5 {[%emt 0:00:28]} 10. Ngf3 {[%emt 0:00:39]} e4 {[%emt 0:02:47]} 11. Nd4 {[%emt 0:01:20]} O-O {[%emt 0:01:01]} 12. c3 {[%emt 0:04:09]} c5 {[%emt 0:04:13]} 13. N4b3 {[%emt 0:01:18]} Qe7 {[%emt 0:00:43]} 14. Qc2 {[%emt 0:03:56]} a6 {[%emt 0:01:26]} 15. O-O {[%emt 0:03:06]} Re8 {[%emt 0:05:21]} 16. Rad1 {[%emt 0:05:19]} b5 {[%emt 0:01:21]} 17. Rfe1 {[%emt 0:05:48]} Bf5 {[%emt 0:04:39]} 18. Nf1 {[%emt 0:00:31]} Rad8 {[%emt 0:08:44]} 19. Ng3 {[%emt 0:02:56]} Bd7 {[%emt 0:02:08]} 20. Rd2 {[%emt 0:04:11]} Bc6 {[%emt 0:01:16]} 21. Red1 {[%emt 0:00:40]} Rxd2 {[%emt 0:01:06]} 22. Qxd2 {[%emt 0:04:43]} Nd5 {[%emt 0:03:49]} 23. c4 {[%emt 0:08:05]} Nb4 {[%emt 0:11:20]} 24. a3 {[%emt 0:02:36]} Nd3 {[%emt 0:03:19]} 25. Bxd3 {[%emt 0:07:33]} exd3 {[%emt 0:00:25]} 26. Na5 {[%emt 0:04:04]} Ba8 {[%emt 0:04:06]} 27. Qxd3 {[%emt 0:04:47]} Bxb2 {[%emt 0:01:14]} 28. cxb5 {[%emt 0:01:09]} axb5 {[%emt 0:01:04]} 29. Qxb5 {[%emt 0:05:55]} Bxa3 {[%emt 0:01:15]} 30. Nc4 {[%emt 0:00:52]} Bb4 {[%emt 0:00:47]} 31. Rd7 {[%emt 0:02:18]} Qf8 {[%emt 0:05:54]} 32. Qb6 {[%emt 0:02:57]} Rb8 {[%emt 0:03:41]} 33. Qf6 {[%emt 0:05:50]} Qg7 {[%emt 0:00:56]} 34. Qd6 {[%emt 0:04:43]} Rf8 {[%emt 0:01:37]} 35. Qc7 {[%emt 0:06:34]} h5 {[%emt 0:02:13]} 36. Nd6 {[%emt 0:05:02]} h4 {[%emt 0:01:39]} 37. Ne2 {[%emt 0:02:34]} Qa1+ {[%emt 0:06:31]} 38. Kh2 {[%emt 0:00:20]} Qa5 {[%emt 0:03:58]} 39. Rxf7 {[%emt 0:05:44]} Qxc7 {[%emt 0:00:42]} 40. Rxc7 {[%emt 0:00:01]} Rd8 {[%emt 0:02:35]} 41. Nc4 {[%emt 0:01:32]} Bd5 {[%emt 0:01:01]} 42. Ne5 {[%emt 0:01:10]} g5 {[%emt 0:02:22]} 43. Ng1 {[%emt 0:02:47]} Bc3 {[%emt 0:02:13]} 44. Ngf3 {[%emt 0:00:48]} Re8 {[%emt 0:06:37]} 45. Ng4 {[%emt 0:01:57]} c4 {[%emt 0:01:59]} 46. Nd4 {[%emt 0:02:41]} Rb8 {[%emt 0:01:35]} 47. Nf6+ {[%emt 0:00:49]} Kf8 {[%emt 0:00:26]} 48. Nxd5 {[%emt 0:00:11]} Bxd4 {[%emt 0:00:27]} 49. exd4 {[%emt 0:00:13]} Rd8 {[%emt 0:00:06]} 50. Ne3 {[%emt 0:00:29]} Rxd4 {[%emt 0:00:05]} 51. Rxc4 {[%emt 0:00:21]} Rd2 {[%emt 0:00:03]} 52. f3 {[%emt 0:01:01]} Kf7 53. Rc5 1-0

[Event "7. Arber-Senioren-Cup 2019"]
[Site "Bodenmais"]
[Date "2019.08.01"]
[Round "6.14"]
[White "Schwalb, Manfred"]
[Black "Ketzscher, Roland"]
[Result "1-0"]
[ECO "A08"]
[WhiteElo "1965"]
[BlackElo "1917"]
[Annotator "NA"]
[PlyCount "71"]
[EventDate "2019.07.27"]
[EventType "swiss"]
[EventCountry "GER"]
[SourceTitle "playchess.com"]
[Source "ChessBase"]
[SourceQuality "1"]
[TimeControl "60/7800+30:0"]

1. e4 {[%emt 0:00:00]} e6 {[%emt 0:00:00]} 2. d3 {[%emt 0:00:00]} d5 {[%emt 0:00:00]} 3. Nd2 {[%emt 0:00:00]} Nf6 {[%emt 0:00:29]} 4. g3 {[%emt 0:00:00]} Be7 {[%emt 0:00:20]} 5. Bg2 {[%emt 0:00:01]} O-O {[%emt 0:00:09]} 6. Ngf3 {[%emt 0:00:11]} c5 {[%emt 0:00:49]} 7. O-O {[%emt 0:00:15]} Nc6 {[%emt 0:00:14]} 8. Re1 {[%emt 0:01:13]} Re8 {[%emt 0:04:10]} 9. e5 {[%emt 0:00:17]} Nd7 {[%emt 0:00:11]} 10. h4 {[%emt 0:03:08]} Qc7 {[%emt 0:04:20]} 11. Qe2 {[%emt 0:00:10]} f6 {[%emt 0:03:29]} 12. exf6 {[%emt 0:00:38]} Nxf6 {[%emt 0:00:26]} 13. Nf1 {[%emt 0:11:48]} Bd7 {[%emt 0:04:06]} 14. Bf4 {[%emt 0:03:55]} Bd6 {[%emt 0:01:48]} 15. Ne5 {[%emt 0:01:46]} Nxe5 {[%emt 0:00:46]} 16. Bxe5 {[%emt 0:00:10]} Bxe5 {[%emt 0:00:06]} 17. Qxe5 {[%emt 0:00:26]} Qxe5 {[%emt 0:00:06]} 18. Rxe5 {[%emt 0:00:11]} Bc6 {[%emt 0:04:58]} 19. Rae1 {[%emt 0:01:17]} Kf7 20. Bh3 {[%emt 0:00:42]} Bd7 {[%emt 0:01:57]} 21. Nh2 {[%emt 0:04:50]} Re7 {[%emt 0:04:34]} 22. Nf3 {[%emt 0:02:03]} h6 {[%emt 0:05:05]} 23. h5 {[%emt 0:00:56]} Nh7 {[%emt 0:02:12]} 24. Nh4 {[%emt 0:01:04]} Ree8 {[%emt 0:07:43]} 25. Ng6 {[%emt 0:06:12]} Ng5 {[%emt 0:01:36]} 26. Bg4 {[%emt 0:00:24]} Kf6 {[%emt 0:03:23]} 27. f4 {[%emt 0:02:14]} Nf7 {[%emt 0:10:29]} 28. R5e2 {[%emt 0:09:56]} Rad8 {[%emt 0:07:55]} 29. Kg2 {[%emt 0:02:35]} d4 {[%emt 0:00:30]} 30. Bf3 {[%emt 0:00:28]} b6 {[%emt 0:04:38]} 31. g4 {[%emt 0:02:43]} Nd6 {[%emt 0:04:12]} 32. Ne5 {[%emt 0:02:36]} Bc8 {[%emt 0:00:30]} 33. Kg3 {[%emt 0:14:58]} Bb7 {[%emt 0:03:09]} 34. Bxb7 Nxb7 {[%emt 0:00:30]} 35. Kh4 {[%emt 0:00:41]} Nd6 36. g5+ 1-0

[Event "7. Arber-Senioren-Cup 2019"]
[Site "Bodenmais"]
[Date "2019.08.01"]
[Round "6.15"]
[White "Boldt, Heinrich"]
[Black "Augustin, Christian"]
[Result "1/2-1/2"]
[ECO "A43"]
[WhiteElo "1803"]
[BlackElo "1971"]
[Annotator "NA"]
[PlyCount "96"]
[EventDate "2019.07.27"]
[EventType "swiss"]
[EventCountry "GER"]
[SourceTitle "playchess.com"]
[Source "ChessBase"]
[SourceQuality "1"]
[TimeControl "60/7800+30:0"]

1. d4 {[%emt 0:00:00]} c5 {[%emt 0:00:00]} 2. d5 {[%emt 0:01:19]} d6 {[%emt 0:00:30]} 3. c4 {[%emt 0:01:04]} e5 {[%emt 0:00:30]} 4. e4 {[%emt 0:01:56]} Be7 {[%emt 0:00:30]} 5. Bd3 {[%emt 0:02:13]} Bg5 {[%emt 0:04:17]} 6. Nc3 {[%emt 0:04:00]} Bxc1 {[%emt 0:00:30]} 7. Qxc1 {[%emt 0:01:57]} Nh6 {[%emt 0:00:30]} 8. h4 {[%emt 0:04:14]} O-O {[%emt 0:07:25]} 9. Qg5 {[%emt 0:05:31]} f6 {[%emt 0:00:54]} 10. Qd2 {[%emt 0:06:33]} a6 {[%emt 0:23:09]} 11. f3 {[%emt 0:04:37]} f5 {[%emt 0:15:10]} 12. Qg5 {[%emt 0:09:27]} Qb6 {[%emt 0:13:05]} 13. Rb1 {[%emt 0:05:50]} f4 {[%emt 0:02:07]} 14. h5 {[%emt 0:06:52]} Nf7 {[%emt 0:03:53]} 15. Qh4 {[%emt 0:04:21]} h6 {[%emt 0:00:30]} 16. Ke2 {[%emt 0:06:09]} Ng5 {[%emt 0:05:40]} 17. Nh3 {[%emt 0:01:42]} Bxh3 {[%emt 0:00:51]} 18. gxh3 {[%emt 0:00:30]} Nd7 {[%emt 0:00:57]} 19. Rhg1 {[%emt 0:07:31]} Qd8 {[%emt 0:03:12]} 20. Rg2 {[%emt 0:09:03]} Nh7 {[%emt 0:08:12]} 21. Qg4 {[%emt 0:01:35]} Rf7 {[%emt 0:01:06]} 22. Rbg1 {[%emt 0:01:59]} Ng5 {[%emt 0:02:18]} 23. h4 {[%emt 0:02:05]} Nf6 {[%emt 0:01:17]} 24. Qf5 {[%emt 0:01:53]} Ngh7 {[%emt 0:14:41]} 25. Rg6 {[%emt 0:11:36]} Kf8 {[%emt 0:00:30]} 26. Qe6 {[%emt 0:07:11]} Qd7 {[%emt 0:01:01]} 27. Qxd7 {[%emt 0:01:56]} Rxd7 {[%emt 0:00:30]} 28. Na4 {[%emt 0:00:30]} Rf7 {[%emt 0:01:33]} 29. Nb6 {[%emt 0:00:30]} Rd8 {[%emt 0:00:30]} 30. Bc2 {[%emt 0:01:22]} Nxh5 {[%emt 0:00:30]} 31. Ba4 {[%emt 0:03:05]} Ng3+ {[%emt 0:00:30]} 32. Kf2 {[%emt 0:01:19]} Nf6 {[%emt 0:00:41]} 33. Bc2 {[%emt 0:01:40]} Re7 {[%emt 0:01:10]} 34. a3 {[%emt 0:01:18]} Kf7 {[%emt 0:00:54]} 35. R6xg3 fxg3+ 36. Rxg3 {[%emt 0:02:07]} Nh5 {[%emt 0:02:01]} 37. Rg4 {[%emt 0:00:57]} a5 {[%emt 0:00:33]} 38. Na4 {[%emt 0:00:30]} g6 {[%emt 0:01:31]} 39. Nc3 {[%emt 0:01:04]} Kg7 40. Nb5 {[%emt 0:00:56]} Rf7 {[%emt 0:01:00]} 41. Bd1 {[%emt 0:02:34]} Rf4 {[%emt 0:03:34]} 42. Nc7 {[%emt 0:01:31]} Rxg4 {[%emt 0:02:36]} 43. Ne6+ {[%emt 0:00:30]} Kf6 {[%emt 0:00:30]} 44. fxg4 {[%emt 0:01:06]} Rb8 {[%emt 0:01:13]} 45. gxh5 {[%emt 0:00:30]} b5 {[%emt 0:00:30]} 46. hxg6 {[%emt 0:01:54]} Kxg6 {[%emt 0:00:30]} 47. cxb5 {[%emt 0:01:36]} Rxb5 {[%emt 0:00:30]} 48. b3 {[%emt 0:00:34]} Kh7 1/2-1/2

[Event "7. Arber-Senioren-Cup 2019"]
[Site "Bodenmais"]
[Date "2019.08.01"]
[Round "6.16"]
[White "Otto, Klaus"]
[Black "Schmidt, Matthias"]
[Result "1/2-1/2"]
[ECO "B10"]
[WhiteElo "1725"]
[BlackElo "2020"]
[Annotator "NA"]
[PlyCount "65"]
[EventDate "2019.07.27"]
[EventType "swiss"]
[EventCountry "GER"]
[SourceTitle "playchess.com"]
[Source "ChessBase"]
[SourceQuality "1"]
[TimeControl "60/7800+30:0"]

1. e4 {[%emt 0:00:00]} c6 {[%emt 0:00:00]} 2. d3 {[%emt 0:00:00]} d5 {[%emt 0:00:12]} 3. Nd2 {[%emt 0:00:12]} e5 {[%emt 0:00:24]} 4. Ngf3 {[%emt 0:00:16]} Bd6 {[%emt 0:00:47]} 5. d4 {[%emt 0:00:19]} exd4 {[%emt 0:00:49]} 6. exd5 {[%emt 0:01:04]} cxd5 {[%emt 0:00:25]} 7. Nxd4 {[%emt 0:00:33]} Nc6 {[%emt 0:01:18]} 8. N4b3 {[%emt 0:03:56]} Nf6 {[%emt 0:01:33]} 9. Nf3 {[%emt 0:03:04]} h6 {[%emt 0:03:49]} 10. Be2 {[%emt 0:01:58]} O-O {[%emt 0:00:27]} 11. O-O {[%emt 0:00:07]} Qc7 {[%emt 0:02:13]} 12. h3 {[%emt 0:02:23]} Bf5 {[%emt 0:04:58]} 13. Be3 {[%emt 0:02:20]} Nb4 {[%emt 0:03:55]} 14. c3 {[%emt 0:02:32]} Bc2 {[%emt 0:03:38]} 15. Qc1 {[%emt 0:01:39]} Bd3 {[%emt 0:06:09]} 16. Bxd3 {[%emt 0:02:22]} Nxd3 {[%emt 0:00:57]} 17. Qd2 {[%emt 0:00:10]} Ne5 {[%emt 0:00:33]} 18. Nxe5 {[%emt 0:00:44]} Bxe5 {[%emt 0:00:03]} 19. Bd4 {[%emt 0:01:16]} Bf4 {[%emt 0:06:28]} 20. Be3 {[%emt 0:00:13]} Bd6 {[%emt 0:00:48]} 21. Nd4 {[%emt 0:00:48]} Qd7 {[%emt 0:02:35]} 22. Qd3 {[%emt 0:05:05]} b6 {[%emt 0:10:49]} 23. Qf5 {[%emt 0:07:36]} Rad8 {[%emt 0:03:41]} 24. Qxd7 {[%emt 0:05:32]} Rxd7 {[%emt 0:02:04]} 25. f3 {[%emt 0:06:55]} Bc5 {[%emt 0:04:49]} 26. Bf2 {[%emt 0:00:18]} a5 {[%emt 0:02:00]} 27. Rae1 {[%emt 0:01:42]} Nh5 {[%emt 0:05:44]} 28. Nb3 {[%emt 0:03:40]} Bxf2+ {[%emt 0:06:17]} 29. Kxf2 {[%emt 0:01:08]} Nf4 {[%emt 0:01:22]} 30. Re3 {[%emt 0:01:51]} a4 {[%emt 0:01:27]} 31. Nd4 {[%emt 0:00:18]} b5 {[%emt 0:10:40]} 32. Rd1 {[%emt 0:00:36]} Rb8 {[%emt 0:03:20]} 33. Ne2 {[%emt 0:02:21]} 1/2-1/2

[Event "7. Arber-Senioren-Cup 2019"]
[Site "Bodenmais"]
[Date "2019.08.01"]
[Round "6.17"]
[White "Riess, Michael"]
[Black "Bock, Ortwin"]
[Result "1-0"]
[ECO "B00"]
[WhiteElo "1686"]
[BlackElo "1938"]
[Annotator "NA"]
[PlyCount "41"]
[EventDate "2019.07.27"]
[EventType "swiss"]
[EventCountry "GER"]
[SourceTitle "playchess.com"]
[Source "ChessBase"]
[SourceQuality "1"]
[TimeControl "60/7800+30:0"]

1. e4 {[%emt 0:00:00]} Nc6 {[%emt 0:00:00]} 2. d4 {[%emt 0:00:02]} d5 {[%emt 0:00:16]} 3. e5 {[%emt 0:01:29]} Bf5 {[%emt 0:00:59]} 4. Bb5 {[%emt 0:02:54]} a6 {[%emt 0:02:01]} 5. Bxc6+ {[%emt 0:02:14]} bxc6 {[%emt 0:00:02]} 6. Ne2 {[%emt 0:04:12]} e6 {[%emt 0:02:11]} 7. Ng3 {[%emt 0:00:43]} Bg6 {[%emt 0:02:36]} 8. O-O {[%emt 0:01:00]} h5 {[%emt 0:05:02]} 9. Ne2 {[%emt 0:02:38]} Rb8 {[%emt 0:06:53]} 10. Nf4 {[%emt 0:01:11]} Bf5 {[%emt 0:03:04]} 11. h3 {[%emt 0:04:02]} g6 {[%emt 0:07:41]} 12. Re1 {[%emt 0:03:58]} Bh6 {[%emt 0:05:26]} 13. b3 {[%emt 0:02:36]} Bg5 {[%emt 0:15:53]} 14. Nd3 {[%emt 0:01:25]} Bh4 {[%emt 0:10:05]} 15. Bf4 {[%emt 0:03:30]} Nh6 {[%emt 0:04:26]} 16. Qd2 {[%emt 0:05:36]} g5 {[%emt 0:04:17]} 17. Bg3 {[%emt 0:01:37]} g4 {[%emt 0:04:27]} 18. Bxh4 {[%emt 0:01:18]} Qxh4 {[%emt 0:00:03]} 19. Qf4 {[%emt 0:01:17]} Bxd3 {[%emt 0:04:23]} 20. cxd3 {[%emt 0:00:24]} Nf5 {[%emt 0:00:05]} 21. Nd2 1-0

[Event "7. Arber-Senioren-Cup 2019"]
[Site "Bodenmais"]
[Date "2019.08.01"]
[Round "6.18"]
[White "Schuster, Herbert"]
[Black "Mahnke, Ralf"]
[Result "0-1"]
[ECO "C44"]
[WhiteElo "1774"]
[BlackElo "1925"]
[Annotator "NA"]
[PlyCount "118"]
[EventDate "2019.07.27"]
[EventType "swiss"]
[EventCountry "GER"]
[SourceTitle "playchess.com"]
[Source "ChessBase"]
[SourceQuality "1"]
[TimeControl "60/7800+30:0"]

1. e4 {[%emt 0:00:00]} e5 {[%emt 0:00:00]} 2. Nf3 {[%emt 0:00:14]} Nc6 {[%emt 0:00:00]} 3. c4 {[%emt 0:01:11]} Nf6 {[%emt 0:00:22]} 4. Nc3 {[%emt 0:00:37]} Bc5 {[%emt 0:03:26]} 5. Be2 {[%emt 0:02:24]} d6 {[%emt 0:00:26]} 6. O-O {[%emt 0:01:38]} O-O {[%emt 0:00:20]} 7. d3 {[%emt 0:00:27]} h6 {[%emt 0:00:25]} 8. Be3 {[%emt 0:00:37]} Bb6 {[%emt 0:01:11]} 9. h3 {[%emt 0:01:00]} Bd7 {[%emt 0:04:25]} 10. Nd5 {[%emt 0:01:23]} Nxd5 {[%emt 0:01:49]} 11. cxd5 {[%emt 0:00:30]} Ne7 {[%emt 0:00:31]} 12. a4 {[%emt 0:02:23]} c6 {[%emt 0:00:33]} 13. b4 {[%emt 0:04:58]} Bxe3 {[%emt 0:01:38]} 14. fxe3 {[%emt 0:00:38]} cxd5 {[%emt 0:00:16]} 15. Qb3 {[%emt 0:01:08]} Be6 {[%emt 0:03:07]} 16. Qb2 {[%emt 0:03:58]} Qb6 {[%emt 0:02:15]} 17. d4 {[%emt 0:03:55]} dxe4 {[%emt 0:00:55]} 18. a5 {[%emt 0:00:27]} Qd8 {[%emt 0:01:25]} 19. Nd2 {[%emt 0:01:06]} d5 {[%emt 0:03:27]} 20. dxe5 {[%emt 0:00:56]} b6 {[%emt 0:01:24]} 21. Nb3 {[%emt 0:02:00]} bxa5 {[%emt 0:04:24]} 22. Nd4 {[%emt 0:02:54]} Qb6 {[%emt 0:02:53]} 23. Rxa5 {[%emt 0:00:47]} Rab8 {[%emt 0:00:58]} 24. Rb5 {[%emt 0:00:40]} Qc7 {[%emt 0:00:44]} 25. Rxb8 {[%emt 0:01:41]} Rxb8 {[%emt 0:01:08]} 26. Qa3 {[%emt 0:02:29]} Ng6 {[%emt 0:05:18]} 27. Bh5 {[%emt 0:02:21]} Nxe5 {[%emt 0:00:56]} 28. Nxe6 {[%emt 0:00:25]} fxe6 {[%emt 0:00:25]} 29. Rc1 {[%emt 0:03:08]} Qb6 {[%emt 0:03:18]} 30. Kh2 {[%emt 0:02:20]} Nc4 {[%emt 0:01:33]} 31. Qa4 {[%emt 0:02:49]} Rd8 {[%emt 0:11:59]} 32. Ra1 {[%emt 0:02:23]} Qc7+ {[%emt 0:00:38]} 33. Kg1 {[%emt 0:02:06]} Rd7 {[%emt 0:00:51]} 34. Be8 {[%emt 0:01:36]} Re7 {[%emt 0:00:23]} 35. Kf2 {[%emt 0:03:53]} Qb6 {[%emt 0:03:02]} 36. Re1 {[%emt 0:01:44]} Kh7 {[%emt 0:02:15]} 37. Qb5 {[%emt 0:03:05]} Nd6 {[%emt 0:11:33]} 38. Qxb6 {[%emt 0:00:53]} axb6 {[%emt 0:00:10]} 39. Bh5 {[%emt 0:02:14]} g6 {[%emt 0:02:40]} 40. Bd1 {[%emt 0:00:45]} Ra7 {[%emt 0:01:15]} 41. Be2 {[%emt 0:02:09]} Ra2 {[%emt 0:04:40]} 42. Rc1 {[%emt 0:05:40]} Nc4 {[%emt 0:00:37]} 43. b5 {[%emt 0:00:47]} Kg7 {[%emt 0:01:00]} 44. g4 {[%emt 0:01:53]} g5 {[%emt 0:02:02]} 45. Rc3 {[%emt 0:00:24]} Kf6 {[%emt 0:02:27]} 46. Ke1 {[%emt 0:00:21]} Ra4 {[%emt 0:00:51]} 47. Bd1 {[%emt 0:02:17]} Rb4 {[%emt 0:00:29]} 48. Bb3 {[%emt 0:00:25]} Ke5 {[%emt 0:01:05]} 49. Ke2 {[%emt 0:01:46]} Kd6 {[%emt 0:00:22]} 50. Kf2 {[%emt 0:01:59]} Kc5 {[%emt 0:01:00]} 51. Kg3 {[%emt 0:00:25]} Kxb5 {[%emt 0:00:33]} 52. h4 {[%emt 0:00:55]} Kc5 {[%emt 0:00:48]} 53. hxg5 {[%emt 0:01:03]} hxg5 {[%emt 0:00:09]} 54. Kf2 {[%emt 0:01:00]} b5 {[%emt 0:00:38]} 55. Ke2 {[%emt 0:02:48]} Kd6 {[%emt 0:00:17]} 56. Bc2 {[%emt 0:01:08]} Rb2 {[%emt 0:02:05]} 57. Kd1 {[%emt 0:00:27]} b4 {[%emt 0:00:58]} 58. Rb3 {[%emt 0:00:25]} Rxb3 {[%emt 0:00:42]} 59. Bxb3 {[%emt 0:00:04]} Nxe3+ {[%emt 0:00:30]} 0-1

[Event "7. Arber-Senioren-Cup 2019"]
[Site "Bodenmais"]
[Date "2019.08.01"]
[Round "6.19"]
[White "Hilbig, Dieter"]
[Black "Loibl, Johann"]
[Result "1/2-1/2"]
[ECO "C54"]
[WhiteElo "1943"]
[BlackElo "1760"]
[Annotator "NA"]
[PlyCount "73"]
[EventDate "2019.07.27"]
[EventType "swiss"]
[EventCountry "GER"]
[SourceTitle "playchess.com"]
[Source "ChessBase"]
[SourceQuality "1"]
[TimeControl "60/7800+30:0"]

1. e4 {[%emt 0:00:00]} e5 {[%emt 0:00:00]} 2. Nf3 {[%emt 0:00:00]} Nc6 {[%emt 0:00:00]} 3. Bc4 {[%emt 0:00:03]} Bc5 {[%emt 0:00:00]} 4. c3 {[%emt 0:00:08]} Nf6 {[%emt 0:00:02]} 5. d3 {[%emt 0:00:09]} d6 {[%emt 0:00:16]} 6. Bb3 {[%emt 0:01:07]} O-O {[%emt 0:01:18]} 7. Bg5 {[%emt 0:00:14]} h6 {[%emt 0:00:08]} 8. Bh4 {[%emt 0:00:07]} Be6 {[%emt 0:04:18]} 9. Bc2 {[%emt 0:00:40]} Qe7 {[%emt 0:12:41]} 10. Nbd2 {[%emt 0:00:46]} Rad8 {[%emt 0:02:30]} 11. Qe2 {[%emt 0:00:48]} a5 {[%emt 0:03:25]} 12. Nf1 {[%emt 0:01:31]} Rfe8 {[%emt 0:08:56]} 13. Ne3 {[%emt 0:00:58]} Bb6 {[%emt 0:09:18]} 14. h3 {[%emt 0:03:28]} g5 {[%emt 0:17:58]} 15. Bg3 {[%emt 0:02:23]} Qf8 {[%emt 0:03:57]} 16. a3 {[%emt 0:04:15]} Bc8 {[%emt 0:06:42]} 17. Nd2 {[%emt 0:05:38]} d5 {[%emt 0:04:02]} 18. O-O-O {[%emt 0:07:37]} d4 {[%emt 0:01:52]} 19. cxd4 {[%emt 0:01:42]} Nxd4 {[%emt 0:02:56]} 20. Qf1 {[%emt 0:01:08]} Qc5 {[%emt 0:04:33]} 21. Kb1 {[%emt 0:03:13]} Nxc2 {[%emt 0:04:33]} 22. Nxc2 {[%emt 0:00:14]} Qb5 {[%emt 0:05:17]} 23. Nc4 {[%emt 0:04:31]} Nxe4 {[%emt 0:03:17]} 24. dxe4 {[%emt 0:04:51]} Rxd1+ {[%emt 0:00:14]} 25. Qxd1 {[%emt 0:00:06]} Qxc4 {[%emt 0:00:11]} 26. h4 {[%emt 0:03:33]} Qxe4 {[%emt 0:04:45]} 27. hxg5 {[%emt 0:02:31]} Bf5 {[%emt 0:02:52]} 28. Rxh6 {[%emt 0:01:55]} Kg7 {[%emt 0:03:25]} 29. Rh1 {[%emt 0:02:22]} Qxc2+ {[%emt 0:06:07]} 30. Qxc2 {[%emt 0:00:07]} Bxc2+ {[%emt 0:00:03]} 31. Kxc2 {[%emt 0:00:08]} Kg6 {[%emt 0:01:24]} 32. Re1 {[%emt 0:00:48]} Kxg5 {[%emt 0:02:29]} 33. Bxe5 {[%emt 0:11:14]} Kf5 {[%emt 0:00:45]} 34. Bc3 {[%emt 0:03:05]} Rxe1 {[%emt 0:01:46]} 35. Bxe1 {[%emt 0:00:07]} Ke4 {[%emt 0:00:21]} 36. Kd2 {[%emt 0:06:28]} a4 {[%emt 0:01:04]} 37. f3+ {[%emt 0:04:18]} 1/2-1/2

[Event "7. Arber-Senioren-Cup 2019"]
[Site "Bodenmais"]
[Date "2019.08.01"]
[Round "6.20"]
[White "Meckel, Helmut"]
[Black "Riedl, Maximilian"]
[Result "1-0"]
[ECO "A00"]
[WhiteElo "1804"]
[BlackElo "1905"]
[Annotator "NA"]
[PlyCount "63"]
[EventDate "2019.07.27"]
[EventType "swiss"]
[EventCountry "GER"]
[SourceTitle "playchess.com"]
[Source "ChessBase"]
[SourceQuality "1"]
[TimeControl "60/7800+30:0"]

1. b4 {[%emt 0:04:24]} c6 {[%emt 0:00:00]} 2. c4 {[%emt 0:00:28]} e6 {[%emt 0:00:29]} 3. Bb2 {[%emt 0:00:18]} Nf6 {[%emt 0:00:07]} 4. b5 {[%emt 0:00:14]} cxb5 {[%emt 0:00:27]} 5. cxb5 {[%emt 0:00:06]} d5 {[%emt 0:01:00]} 6. e3 {[%emt 0:00:14]} Be7 {[%emt 0:00:30]} 7. Nf3 {[%emt 0:04:29]} O-O {[%emt 0:00:20]} 8. Nc3 {[%emt 0:01:34]} Nbd7 {[%emt 0:00:21]} 9. Be2 {[%emt 0:00:16]} a6 {[%emt 0:02:21]} 10. a4 {[%emt 0:00:43]} axb5 {[%emt 0:02:17]} 11. axb5 {[%emt 0:00:06]} Rxa1 {[%emt 0:00:11]} 12. Qxa1 {[%emt 0:00:23]} Re8 {[%emt 0:03:35]} 13. g4 {[%emt 0:02:45]} Nxg4 {[%emt 0:05:23]} 14. Rg1 {[%emt 0:00:25]} Ngf6 {[%emt 0:00:27]} 15. e4 {[%emt 0:00:23]} d4 {[%emt 0:04:01]} 16. Nxd4 {[%emt 0:01:32]} Nc5 {[%emt 0:00:33]} 17. d3 {[%emt 0:02:39]} Qxd4 {[%emt 0:00:55]} 18. Nd5 {[%emt 0:00:07]} Nxd3+ {[%emt 0:01:48]} 19. Bxd3 {[%emt 0:00:21]} Qxd3 {[%emt 0:00:48]} 20. Nxe7+ {[%emt 0:02:02]} Rxe7 {[%emt 0:00:53]} 21. Bxf6 {[%emt 0:02:55]} Qxe4+ {[%emt 0:00:33]} 22. Kf1 {[%emt 0:00:23]} Qd3+ {[%emt 0:04:27]} 23. Ke1 {[%emt 0:00:21]} Qe4+ {[%emt 0:05:26]} 24. Kf1 {[%emt 0:00:04]} Qd3+ {[%emt 0:04:42]} 25. Ke1 {[%emt 0:00:07]} Rd7 {[%emt 0:02:37]} 26. Rxg7+ {[%emt 0:02:58]} Kf8 {[%emt 0:00:17]} 27. Qc1 {[%emt 0:04:07]} Qd6 {[%emt 0:37:06]} 28. Qxc8+ {[%emt 0:02:20]} Rd8 {[%emt 0:00:21]} 29. Qxd8+ {[%emt 0:03:09]} Qxd8 {[%emt 0:00:22]} 30. Rxf7+ {[%emt 0:00:17]} Kxf7 {[%emt 0:00:19]} 31. Bxd8 {[%emt 0:00:03]} Ke8 {[%emt 0:00:27]} 32. Bb6 {[%emt 0:00:30]} 1-0